[Event "CZE-ch Youth G10-G12-G14 2022"]
[Site "Luhacovice"]
[Date "2022.03.18"]
[Round "8.31"]
[White "Zadrapova, Amalie"]
[Black "Dorazilova, Kristyna"]
[Result "1-0"]
[ECO "B07"]
[WhiteElo "1582"]
[BlackElo "1240"]
[Annotator "NA"]
[PlyCount "87"]
[EventDate "2022.03.12"]
[EventType "swiss"]
[EventCountry "CZE"]
[SourceTitle "playchess.com"]
[Source "ChessBase"]
[SourceQuality "1"]
[TimeControl "40/5400+30:1800+30"]

1. e4 {[%emt 0:00:03]} d6 {[%emt 0:00:17]} 2. d4 {[%emt 0:00:07]} Nf6 {[%emt 0:00:15]} 3. Nc3 {[%emt 0:00:08]} Nbd7 {[%emt 0:01:07]} 4. f4 {[%emt 0:00:49]} e5 {[%emt 0:00:10]} 5. Nf3 {[%emt 0:00:00]} exd4 {[%emt 0:00:10]} 6. Qxd4 {[%emt 0:00:02]} c6 {[%emt 0:00:48]} 7. Be3 {[%emt 0:00:44]} d5 {[%emt 0:04:33]} 8. O-O-O {[%emt 0:05:37]} c5 {[%emt 0:14:15]} 9. Qa4 {[%emt 0:06:16]} d4 {[%emt 0:00:51]} 10. Nxd4 {[%emt 0:00:15]} cxd4 {[%emt 0:00:06]} 11. Bxd4 {[%emt 0:01:41]} Be7 {[%emt 0:02:43]} 12. Bxf6 {[%emt 0:02:29]} Bxf6 {[%emt 0:01:51]} 13. e5 {[%emt 0:00:36]} Be7 {[%emt 0:00:46]} 14. Bb5 {[%emt 0:00:30]} a6 {[%emt 0:08:59]} 15. f5 {[%emt 0:13:17]} axb5 {[%emt 0:02:51]} 16. Qxa8 {[%emt 0:01:03]} O-O {[%emt 0:02:34]} 17. e6 {[%emt 0:10:17]} fxe6 {[%emt 0:00:37]} 18. fxe6 {[%emt 0:00:22]} Nb6 {[%emt 0:00:15]} 19. Rxd8 {[%emt 0:01:38]} Nxa8 {[%emt 0:00:20]} 20. Rxf8+ {[%emt 0:00:39]} Bxf8 {[%emt 0:01:40]} 21. Re1 {[%emt 0:00:59]} Be7 {[%emt 0:00:19]} 22. Nxb5 {[%emt 0:01:32]} b6 {[%emt 0:00:37]} 23. g3 {[%emt 0:03:19]} Bb7 {[%emt 0:01:05]} 24. Kb1 {[%emt 0:01:32]} Bc6 {[%emt 0:01:08]} 25. Nd4 {[%emt 0:02:48]} Be8 {[%emt 0:00:55]} 26. Nf5 {[%emt 0:02:17]} Kf8 {[%emt 0:01:31]} 27. Re3 {[%emt 0:10:57]} g6 {[%emt 0:02:54]} 28. Nxe7 {[%emt 0:15:00]} Kxe7 {[%emt 0:02:23]} 29. Rc3 {[%emt 0:00:30]} Kd6 {[%emt 0:00:30]} 30. Rc8 {[%emt 0:00:30]} Nc7 {[%emt 0:00:30]} 31. c4 {[%emt 0:00:30]} g5 {[%emt 0:00:30]} 32. Kc1 {[%emt 0:00:30]} Kc6 {[%emt 0:00:30]} 33. Rd8 {[%emt 0:00:30]} Bg6 {[%emt 0:00:30]} 34. e7 {[%emt 0:00:30]} Bf7 {[%emt 0:00:30]} 35. b3 {[%emt 0:00:30]} Bg6 {[%emt 0:00:30]} 36. Kb2 {[%emt 0:00:30]} Bf7 {[%emt 0:00:30]} 37. a4 {[%emt 0:00:30]} h5 {[%emt 0:00:37]} 38. Kc3 {[%emt 0:00:31]} Bg6 {[%emt 0:00:31]} 39. Kd2 {[%emt 0:02:46]} g4 {[%emt 0:00:13]} 40. Ke3 {[%emt 0:01:16]} Bc2 {[%emt 0:01:15]} 41. e8=Q+ {[%emt 0:30:17]} Nxe8 {[%emt 0:30:08]} 42. Rxe8 {[%emt 0:00:16]} Bxb3 {[%emt 0:00:05]} 43. Kd4 {[%emt 0:00:58]} Bd1 {[%emt 0:01:31]} 44. Rh8 {[%emt 0:00:57]} 1-0

[Event "CZE-ch Youth G10-G12-G14 2022"]
[Site "Luhacovice"]
[Date "2022.03.18"]
[Round "8.32"]
[White "Sikorova, Jana"]
[Black "Dominikova, Denisa"]
[Result "1-0"]
[ECO "D08"]
[WhiteElo "1427"]
[BlackElo "1254"]
[Annotator "NA"]
[PlyCount "93"]
[EventDate "2022.03.12"]
[EventType "swiss"]
[EventCountry "CZE"]
[SourceTitle "playchess.com"]
[Source "ChessBase"]
[SourceQuality "1"]
[TimeControl "40/5400+30:1800+30"]

1. d4 {[%emt 0:00:03]} d5 {[%emt 0:00:19]} 2. c4 {[%emt 0:00:15]} e5 {[%emt 0:02:02]} 3. dxe5 {[%emt 0:01:31]} d4 {[%emt 0:01:31]} 4. Nf3 {[%emt 0:03:16]} Nc6 {[%emt 0:02:08]} 5. e4 {[%emt 0:03:04]} Nge7 {[%emt 0:06:20]} 6. Nbd2 {[%emt 0:06:21]} Ng6 {[%emt 0:04:19]} 7. Nb3 {[%emt 0:01:22]} Bg4 {[%emt 0:05:40]} 8. Nbxd4 {[%emt 0:07:10]} Ncxe5 {[%emt 0:06:43]} 9. Be2 {[%emt 0:03:58]} Bc5 {[%emt 0:06:54]} 10. Be3 {[%emt 0:06:33]} O-O {[%emt 0:07:04]} 11. Nxe5 {[%emt 0:08:15]} Nxe5 {[%emt 0:04:02]} 12. Bxg4 {[%emt 0:04:56]} Nxg4 {[%emt 0:02:45]} 13. Qxg4 {[%emt 0:01:26]} Bxd4 {[%emt 0:01:22]} 14. Rd1 {[%emt 0:03:14]} c5 {[%emt 0:01:56]} 15. O-O {[%emt 0:01:45]} Qb6 {[%emt 0:01:56]} 16. Bxd4 {[%emt 0:01:54]} cxd4 {[%emt 0:00:34]} 17. b3 {[%emt 0:02:13]} Rad8 {[%emt 0:02:33]} 18. Rd3 {[%emt 0:01:43]} Rfe8 {[%emt 0:03:04]} 19. Rfd1 {[%emt 0:04:03]} Re6 {[%emt 0:04:03]} 20. g3 {[%emt 0:01:45]} Qc5 {[%emt 0:02:39]} 21. e5 {[%emt 0:04:53]} Qxe5 {[%emt 0:04:11]} 22. Rxd4 {[%emt 0:01:37]} Rxd4 {[%emt 0:02:12]} 23. Qxd4 {[%emt 0:00:25]} Qxd4 {[%emt 0:02:00]} 24. Rxd4 {[%emt 0:00:08]} g6 {[%emt 0:01:00]} 25. Rd7 {[%emt 0:01:15]} Rb6 {[%emt 0:00:41]} 26. Kf1 {[%emt 0:05:07]} Kg7 {[%emt 0:01:52]} 27. Ke2 {[%emt 0:02:01]} Kf6 {[%emt 0:02:27]} 28. Kd3 {[%emt 0:03:23]} Ke6 {[%emt 0:01:34]} 29. Rc7 {[%emt 0:00:20]} Rd6+ {[%emt 0:01:01]} 30. Kc2 {[%emt 0:01:06]} Rd7 {[%emt 0:00:47]} 31. Rxd7 {[%emt 0:00:21]} Kxd7 {[%emt 0:00:06]} 32. Kd3 {[%emt 0:00:07]} Kd6 {[%emt 0:01:20]} 33. Kd4 {[%emt 0:00:27]} b6 {[%emt 0:00:55]} 34. b4 {[%emt 0:00:16]} f6 {[%emt 0:01:14]} 35. c5+ {[%emt 0:00:29]} bxc5+ {[%emt 0:02:04]} 36. bxc5+ {[%emt 0:00:09]} Kc6 {[%emt 0:00:24]} 37. f4 {[%emt 0:01:01]} h6 {[%emt 0:02:28]} 38. Kc4 {[%emt 0:02:54]} g5 {[%emt 0:03:33]} 39. fxg5 {[%emt 0:02:26]} fxg5 {[%emt 0:00:49]} 40. g4 {[%emt 0:03:19]} a6 {[%emt 0:02:43]} 41. a3 {[%emt 0:30:32]} a5 {[%emt 0:32:21]} 42. a4 {[%emt 0:00:11]} Kc7 {[%emt 0:01:20]} 43. Kb5 {[%emt 0:00:51]} Kb7 {[%emt 0:00:25]} 44. Kxa5 {[%emt 0:00:12]} Ka7 {[%emt 0:00:51]} 45. c6 {[%emt 0:00:38]} Kb8 {[%emt 0:00:19]} 46. Kb6 {[%emt 0:00:29]} h5 {[%emt 0:00:37]} 47. gxh5 {[%emt 0:00:14]} 1-0

[Event "CZE-ch Youth G10-G12-G14 2022"]
[Site "Luhacovice"]
[Date "2022.03.18"]
[Round "8.33"]
[White "Janouskova, Adela"]
[Black "Mikesova, Lenka"]
[Result "1-0"]
[ECO "C44"]
[WhiteElo "1585"]
[BlackElo "1364"]
[Annotator "NA"]
[PlyCount "67"]
[EventDate "2022.03.12"]
[EventType "swiss"]
[EventCountry "CZE"]
[SourceTitle "playchess.com"]
[Source "ChessBase"]
[SourceQuality "1"]
[TimeControl "40/5400+30:1800+30"]

1. e4 {[%emt 0:00:04]} e5 {[%emt 0:00:09]} 2. Nf3 {[%emt 0:00:13]} Nc6 {[%emt 0:00:20]} 3. d4 {[%emt 0:01:10]} exd4 {[%emt 0:00:38]} 4. c3 {[%emt 0:00:55]} Nf6 {[%emt 0:10:17]} 5. e5 {[%emt 0:01:50]} Nd5 {[%emt 0:03:05]} 6. cxd4 {[%emt 0:00:07]} d6 {[%emt 0:05:43]} 7. Bc4 {[%emt 0:02:26]} Nb6 {[%emt 0:04:08]} 8. Bb3 {[%emt 0:01:59]} d5 {[%emt 0:02:57]} 9. Nc3 {[%emt 0:02:05]} Bg4 {[%emt 0:04:57]} 10. Be3 {[%emt 0:06:07]} Be7 {[%emt 0:03:24]} 11. a3 {[%emt 0:01:41]} O-O {[%emt 0:05:15]} 12. Bc2 {[%emt 0:01:50]} Nc4 {[%emt 0:04:05]} 13. Qd3 {[%emt 0:01:39]} g6 {[%emt 0:01:32]} 14. Bc1 {[%emt 0:04:31]} Bf5 {[%emt 0:06:13]} 15. Qe2 {[%emt 0:03:43]} Bxc2 {[%emt 0:01:09]} 16. Qxc2 {[%emt 0:00:09]} Qd7 {[%emt 0:02:02]} 17. b3 {[%emt 0:03:01]} Nb6 {[%emt 0:01:57]} 18. O-O {[%emt 0:01:48]} Nd8 {[%emt 0:03:47]} 19. Bh6 {[%emt 0:05:30]} Re8 {[%emt 0:01:38]} 20. Nd2 {[%emt 0:07:16]} Bf8 {[%emt 0:02:43]} 21. Bxf8 {[%emt 0:01:43]} Rxf8 {[%emt 0:00:11]} 22. f4 {[%emt 0:00:51]} Qg4 {[%emt 0:03:16]} 23. h3 {[%emt 0:08:13]} Qd7 {[%emt 0:04:15]} 24. f5 {[%emt 0:04:53]} gxf5 {[%emt 0:02:30]} 25. Rxf5 {[%emt 0:00:16]} Ne6 {[%emt 0:02:35]} 26. Qd3 {[%emt 0:02:54]} Kh8 {[%emt 0:03:18]} 27. Raf1 {[%emt 0:01:16]} Ng7 {[%emt 0:04:19]} 28. Rf6 {[%emt 0:00:56]} Ne6 {[%emt 0:04:51]} 29. R1f5 {[%emt 0:02:51]} Ng7 {[%emt 0:07:26]} 30. Rf4 {[%emt 0:01:06]} Ne6 {[%emt 0:03:42]} 31. Rh4 {[%emt 0:02:07]} Ng5 {[%emt 0:00:24]} 32. Nf3 {[%emt 0:02:12]} Nxf3+ {[%emt 0:00:50]} 33. Qxf3 {[%emt 0:00:09]} Rg8 {[%emt 0:01:14]} 34. Rxh7+ {[%emt 0:01:18]} 1-0

[Event "CZE-ch Youth G10-G12-G14 2022"]
[Site "Luhacovice"]
[Date "2022.03.18"]
[Round "8.34"]
[White "Hetfleischova, Elen"]
[Black "Lipovska Viktorie"]
[Result "1-0"]
[ECO "C34"]
[WhiteElo "1363"]
[BlackElo "1189"]
[Annotator "NA"]
[PlyCount "68"]
[EventDate "2022.03.12"]
[EventType "swiss"]
[EventCountry "CZE"]
[SourceTitle "playchess.com"]
[Source "ChessBase"]
[SourceQuality "1"]
[TimeControl "40/5400+30:1800+30"]

1. e4 {[%emt 0:00:02]} e5 {[%emt 0:00:04]} 2. f4 {[%emt 0:00:05]} exf4 {[%emt 0:00:06]} 3. Nf3 {[%emt 0:00:04]} Nf6 {[%emt 0:00:14]} 4. Nc3 {[%emt 0:00:03]} d5 {[%emt 0:00:55]} 5. e5 {[%emt 0:01:02]} Ne4 {[%emt 0:00:30]} 6. d3 {[%emt 0:00:25]} Nxc3 {[%emt 0:02:02]} 7. bxc3 {[%emt 0:00:05]} Bg4 {[%emt 0:02:35]} 8. d4 {[%emt 0:00:51]} f6 {[%emt 0:03:02]} 9. Bxf4 {[%emt 0:00:47]} fxe5 {[%emt 0:01:23]} 10. Bxe5 {[%emt 0:00:58]} Nc6 {[%emt 0:02:45]} 11. Rb1 {[%emt 0:00:11]} Nxe5 {[%emt 0:00:49]} 12. dxe5 {[%emt 0:00:11]} b6 {[%emt 0:01:11]} 13. Bb5+ {[%emt 0:00:13]} Bd7 {[%emt 0:00:24]} 14. O-O {[%emt 0:01:10]} Bc5+ {[%emt 0:01:20]} 15. Nd4 {[%emt 0:00:11]} Bxb5 {[%emt 0:01:17]} 16. Rxb5 {[%emt 0:01:13]} Qd7 {[%emt 0:00:39]} 17. Rb1 {[%emt 0:00:35]} O-O-O {[%emt 0:00:31]} 18. a4 {[%emt 0:01:32]} h5 {[%emt 0:01:06]} 19. a5 {[%emt 0:00:55]} Rde8 {[%emt 0:04:55]} 20. Qe2 {[%emt 0:00:37]} Kb8 {[%emt 0:02:09]} 21. Kh1 {[%emt 0:01:35]} Bxd4 {[%emt 0:00:23]} 22. cxd4 {[%emt 0:00:13]} Qg4 {[%emt 0:02:34]} 23. Qd3 {[%emt 0:03:38]} Rh6 {[%emt 0:01:34]} 24. Qb5 {[%emt 0:01:19]} Rd8 {[%emt 0:02:02]} 25. axb6 {[%emt 0:02:55]} Rxb6 {[%emt 0:00:27]} 26. Qd3 {[%emt 0:03:25]} Rh8 {[%emt 0:02:28]} 27. c3 {[%emt 0:02:28]} Kb7 {[%emt 0:00:52]} 28. Rxb6+ {[%emt 0:01:46]} axb6 {[%emt 0:00:56]} 29. Re1 {[%emt 0:01:39]} Rh6 {[%emt 0:00:54]} 30. h3 {[%emt 0:00:50]} Qe6 {[%emt 0:01:59]} 31. Ra1 {[%emt 0:01:33]} Kc8 {[%emt 0:04:33]} 32. Qb5 {[%emt 0:01:56]} Qc6 {[%emt 0:01:54]} 33. Qf1 {[%emt 0:10:40]} Qxc3 {[%emt 0:01:32]} 34. Qf8+ {[%emt 0:00:07]} Kb7 {[%emt 0:03:21]} 1-0

[Event "CZE-ch Youth G10-G12-G14 2022"]
[Site "Luhacovice"]
[Date "2022.03.18"]
[Round "8.35"]
[White "Archlebova, Stela"]
[Black "Cinkova, Vicky"]
[Result "0-1"]
[ECO "B31"]
[WhiteElo "1121"]
[BlackElo "1317"]
[Annotator "NA"]
[PlyCount "88"]
[EventDate "2022.03.12"]
[EventType "swiss"]
[EventCountry "CZE"]
[SourceTitle "playchess.com"]
[Source "ChessBase"]
[SourceQuality "1"]
[TimeControl "40/5400+30:1800+30"]

1. e4 {[%emt 0:00:04]} c5 {[%emt 0:00:03]} 2. Nf3 {[%emt 0:00:16]} Nc6 {[%emt 0:00:06]} 3. Bb5 {[%emt 0:00:18]} g6 {[%emt 0:00:19]} 4. O-O {[%emt 0:00:47]} Bg7 {[%emt 0:00:13]} 5. d3 {[%emt 0:01:29]} d6 {[%emt 0:01:05]} 6. Re1 {[%emt 0:05:11]} Bd7 {[%emt 0:02:08]} 7. Bxc6 {[%emt 0:00:41]} bxc6 {[%emt 0:01:26]} 8. Nc3 {[%emt 0:03:21]} Nh6 {[%emt 0:04:35]} 9. h3 {[%emt 0:01:05]} O-O {[%emt 0:00:52]} 10. Bd2 {[%emt 0:01:00]} f6 {[%emt 0:02:16]} 11. Qc1 {[%emt 0:02:59]} Nf7 {[%emt 0:00:54]} 12. Ne2 {[%emt 0:03:18]} f5 {[%emt 0:13:06]} 13. exf5 {[%emt 0:02:22]} Bxf5 {[%emt 0:00:26]} 14. Ng3 {[%emt 0:02:04]} Bd7 {[%emt 0:08:45]} 15. h4 {[%emt 0:02:09]} e5 {[%emt 0:06:25]} 16. h5 {[%emt 0:01:36]} Bf5 {[%emt 0:04:19]} 17. Nxf5 {[%emt 0:15:48]} gxf5 {[%emt 0:00:22]} 18. Ng5 {[%emt 0:05:58]} Qd7 {[%emt 0:05:31]} 19. Nxf7 {[%emt 0:06:10]} Qxf7 {[%emt 0:02:36]} 20. Qd1 {[%emt 0:05:58]} f4 {[%emt 0:03:27]} 21. Qg4 {[%emt 0:04:16]} Kh8 {[%emt 0:06:12]} 22. f3 {[%emt 0:01:47]} Rg8 {[%emt 0:01:52]} 23. Qh3 {[%emt 0:01:14]} Bf6 {[%emt 0:01:41]} 24. Re2 {[%emt 0:04:05]} Rg3 {[%emt 0:01:17]} 25. Qf5 {[%emt 0:00:47]} Rag8 {[%emt 0:01:44]} 26. Rf1 {[%emt 0:04:34]} Qg7 {[%emt 0:02:51]} 27. Rff2 {[%emt 0:00:50]} Bh4 {[%emt 0:00:48]} 28. Bxf4 {[%emt 0:03:05]} exf4 {[%emt 0:01:32]} 29. Qxf4 {[%emt 0:00:23]} Bf6 {[%emt 0:00:49]} 30. Kf1 {[%emt 0:01:51]} Bd4 {[%emt 0:00:23]} 31. h6 {[%emt 0:01:31]} Qg6 {[%emt 0:01:40]} 32. Ke1 {[%emt 0:01:46]} Bxf2+ {[%emt 0:01:58]} 33. Rxf2 {[%emt 0:00:14]} Qg5 {[%emt 0:01:27]} 34. Qxg5 {[%emt 0:03:31]} R8xg5 {[%emt 0:04:08]} 35. Kf1 {[%emt 0:01:29]} Re5 {[%emt 0:01:29]} 36. f4 {[%emt 0:00:32]} Re8 {[%emt 0:00:44]} 37. f5 {[%emt 0:00:14]} Rge3 {[%emt 0:00:21]} 38. Rd2 {[%emt 0:01:17]} Rf8 {[%emt 0:00:51]} 39. Rf2 {[%emt 0:00:24]} Rg3 {[%emt 0:00:30]} 40. f6 {[%emt 0:00:22]} Kg8 {[%emt 0:00:45]} 41. Rf5 {[%emt 0:30:59]} Rg6 {[%emt 0:30:46]} 42. Ke2 {[%emt 0:03:26]} Rxg2+ {[%emt 0:00:27]} 43. Kd1 {[%emt 0:00:48]} Rg6 {[%emt 0:00:26]} 44. Kd2 {[%emt 0:00:15]} Rfxf6 {[%emt 0:01:37]} 0-1

[Event "CZE-ch Youth G10-G12-G14 2022"]
[Site "Luhacovice"]
[Date "2022.03.18"]
[Round "8.36"]
[White "Kaplanova, Dominika"]
[Black "Vacekova Anita"]
[Result "1-0"]
[ECO "C47"]
[WhiteElo "1269"]
[BlackElo "1000"]
[Annotator "NA"]
[PlyCount "89"]
[EventDate "2022.03.12"]
[EventType "swiss"]
[EventCountry "CZE"]
[SourceTitle "playchess.com"]
[Source "ChessBase"]
[SourceQuality "1"]
[TimeControl "40/5400+30:1800+30"]

1. e4 {[%emt 0:00:10]} e5 {[%emt 0:00:02]} 2. Nf3 {[%emt 0:00:08]} Nc6 {[%emt 0:00:04]} 3. d4 {[%emt 0:00:29]} exd4 {[%emt 0:00:05]} 4. Nxd4 {[%emt 0:00:06]} Nf6 {[%emt 0:00:21]} 5. Nxc6 {[%emt 0:01:11]} bxc6 {[%emt 0:00:18]} 6. Nc3 {[%emt 0:00:08]} Bb4 {[%emt 0:00:18]} 7. Bd3 {[%emt 0:01:34]} d5 {[%emt 0:00:20]} 8. exd5 {[%emt 0:02:50]} cxd5 {[%emt 0:00:05]} 9. O-O {[%emt 0:00:49]} O-O {[%emt 0:00:38]} 10. Bg5 {[%emt 0:03:38]} c6 {[%emt 0:00:07]} 11. Qf3 {[%emt 0:07:31]} Be7 {[%emt 0:00:14]} 12. h3 {[%emt 0:03:47]} Rb8 {[%emt 0:04:08]} 13. b3 {[%emt 0:09:48]} Be6 {[%emt 0:29:50]} 14. Bf4 {[%emt 0:17:31]} Bd6 {[%emt 0:04:54]} 15. Ne2 {[%emt 0:07:50]} c5 {[%emt 0:14:19]} 16. Rfd1 {[%emt 0:05:19]} d4 {[%emt 0:03:33]} 17. Bxd6 {[%emt 0:04:32]} Qxd6 {[%emt 0:00:43]} 18. Qf4 {[%emt 0:06:20]} Qc6 {[%emt 0:13:24]} 19. c3 {[%emt 0:05:24]} dxc3 {[%emt 0:07:35]} 20. Nxc3 {[%emt 0:00:24]} Rb4 {[%emt 0:01:59]} 21. Qe3 {[%emt 0:01:32]} Rd4 {[%emt 0:02:26]} 22. Rac1 {[%emt 0:04:55]} Rfd8 {[%emt 0:04:44]} 23. Ne2 {[%emt 0:02:21]} R4d5 {[%emt 0:02:54]} 24. Nf4 {[%emt 0:01:13]} Rd4 {[%emt 0:01:00]} 25. Ne2 {[%emt 0:01:29]} R4d5 {[%emt 0:00:47]} 26. Nf4 {[%emt 0:01:32]} Rd4 {[%emt 0:00:09]} 27. Bxh7+ {[%emt 0:07:15]} Nxh7 {[%emt 0:00:53]} 28. Rxd4 {[%emt 0:00:14]} Rxd4 {[%emt 0:02:34]} 29. Qxd4 {[%emt 0:00:15]} cxd4 {[%emt 0:01:31]} 30. Rxc6 {[%emt 0:00:08]} Bf5 {[%emt 0:00:25]} 31. Nd5 {[%emt 0:01:00]} Kf8 {[%emt 0:00:53]} 32. g4 {[%emt 0:00:49]} Be6 {[%emt 0:00:23]} 33. Nf4 {[%emt 0:00:28]} Ke7 {[%emt 0:00:39]} 34. Rc1 {[%emt 0:00:47]} g5 {[%emt 0:00:30]} 35. Ne2 {[%emt 0:01:10]} d3 {[%emt 0:00:12]} 36. Nd4 {[%emt 0:00:14]} Bd5 {[%emt 0:00:26]} 37. Rd1 {[%emt 0:00:52]} Be4 {[%emt 0:00:07]} 38. f3 {[%emt 0:00:41]} Bg6 {[%emt 0:00:01]} 39. Nf5+ {[%emt 0:00:19]} Bxf5 {[%emt 0:00:45]} 40. gxf5 {[%emt 0:00:05]} Nf6 {[%emt 0:00:18]} 41. Rxd3 {[%emt 0:30:09]} Nh5 {[%emt 0:30:15]} 42. Rc3 {[%emt 0:00:54]} Kd6 {[%emt 0:00:15]} 43. Rc4 {[%emt 0:00:44]} Nf4 {[%emt 0:00:11]} 44. Kh2 {[%emt 0:01:45]} Nh5 {[%emt 0:00:31]} 45. Ra4 {[%emt 0:00:10]} 1-0

[Event "CZE-ch Youth G10-G12-G14 2022"]
[Site "Luhacovice"]
[Date "2022.03.18"]
[Round "8.37"]
[White "Kavanova, Anezka"]
[Black "Stavova, Marketa"]
[Result "1/2-1/2"]
[ECO "C64"]
[WhiteElo "1089"]
[BlackElo "1146"]
[Annotator "NA"]
[PlyCount "110"]
[EventDate "2022.03.12"]
[EventType "swiss"]
[EventCountry "CZE"]
[SourceTitle "playchess.com"]
[Source "ChessBase"]
[SourceQuality "1"]
[TimeControl "40/5400+30:1800+30"]

1. e4 {[%emt 0:00:03]} e5 {[%emt 0:00:15]} 2. Nf3 {[%emt 0:00:04]} Nc6 {[%emt 0:00:16]} 3. Bb5 {[%emt 0:00:03]} Bc5 {[%emt 0:00:21]} 4. O-O {[%emt 0:01:32]} d6 {[%emt 0:00:41]} 5. d4 {[%emt 0:02:16]} exd4 {[%emt 0:00:41]} 6. Nxd4 {[%emt 0:00:36]} Nge7 {[%emt 0:00:50]} 7. Bg5 {[%emt 0:03:25]} Bd7 {[%emt 0:00:59]} 8. Bxc6 {[%emt 0:13:07]} bxc6 {[%emt 0:00:31]} 9. Nf5 {[%emt 0:00:30]} f6 {[%emt 0:01:33]} 10. Nxg7+ {[%emt 0:03:40]} Kf7 {[%emt 0:00:32]} 11. Bh6 {[%emt 0:01:05]} Rg8 {[%emt 0:01:27]} 12. Qh5+ {[%emt 0:01:19]} Ng6 {[%emt 0:00:15]} 13. Nf5 {[%emt 0:01:12]} Qb8 {[%emt 0:03:22]} 14. Bc1 {[%emt 0:01:43]} Rh8 {[%emt 0:00:30]} 15. Nd2 {[%emt 0:08:32]} Qb6 {[%emt 0:01:03]} 16. Nb3 {[%emt 0:04:51]} Rae8 {[%emt 0:01:40]} 17. Bh6 {[%emt 0:09:32]} Rhg8 {[%emt 0:07:33]} 18. Rad1 {[%emt 0:04:07]} Rxe4 {[%emt 0:05:01]} 19. Bc1 {[%emt 0:01:19]} Rh8 {[%emt 0:01:24]} 20. Nh6+ {[%emt 0:00:12]} Ke7 {[%emt 0:03:04]} 21. Nxc5 {[%emt 0:02:17]} Qxc5 {[%emt 0:01:54]} 22. Qxc5 {[%emt 0:01:15]} dxc5 {[%emt 0:00:17]} 23. Rfe1 {[%emt 0:01:16]} Re6 {[%emt 0:00:41]} 24. Be3 {[%emt 0:02:22]} Rd8 {[%emt 0:07:10]} 25. Bxc5+ {[%emt 0:01:23]} Ke8 {[%emt 0:00:13]} 26. Bxa7 {[%emt 0:06:12]} Ra8 {[%emt 0:00:47]} 27. Rxe6+ {[%emt 0:03:15]} Bxe6 {[%emt 0:00:09]} 28. Bd4 {[%emt 0:00:48]} Rd8 {[%emt 0:00:23]} 29. Re1 {[%emt 0:03:21]} Rxd4 {[%emt 0:00:24]} 30. Rxe6+ {[%emt 0:00:42]} Kd7 {[%emt 0:00:23]} 31. Re1 {[%emt 0:00:13]} Rd2 {[%emt 0:00:56]} 32. g3 {[%emt 0:01:26]} Rxc2 {[%emt 0:00:31]} 33. Rb1 {[%emt 0:00:43]} Ne5 {[%emt 0:02:07]} 34. Kg2 {[%emt 0:08:15]} Ke6 {[%emt 0:01:30]} 35. a4 {[%emt 0:02:25]} Nc4 {[%emt 0:03:15]} 36. b3 {[%emt 0:01:09]} Nb6 {[%emt 0:00:26]} 37. a5 {[%emt 0:02:10]} Na8 {[%emt 0:00:09]} 38. b4 {[%emt 0:00:06]} Ra2 {[%emt 0:00:30]} 39. Kf3 {[%emt 0:00:34]} Kd5 {[%emt 0:01:03]} 40. Ng4 {[%emt 0:00:40]} f5 {[%emt 0:00:47]} 41. Ne3+ {[%emt 0:30:15]} Ke5 {[%emt 0:30:44]} 42. Rc1 {[%emt 0:01:13]} Ra4 {[%emt 0:00:46]} 43. Rxc6 {[%emt 0:00:53]} Rxb4 {[%emt 0:01:37]} 44. Rh6 {[%emt 0:00:22]} c5 {[%emt 0:01:36]} 45. Rh5 {[%emt 0:02:45]} c4 {[%emt 0:01:24]} 46. Rxf5+ {[%emt 0:01:14]} Kd6 {[%emt 0:00:26]} 47. h4 {[%emt 0:01:16]} c3 {[%emt 0:00:59]} 48. Rd5+ {[%emt 0:03:46]} Kc6 {[%emt 0:00:40]} 49. Ke2 {[%emt 0:02:07]} Nc7 {[%emt 0:00:45]} 50. Rd3 {[%emt 0:00:00]} Nb5 {[%emt 0:00:00]} 51. a6 {[%emt 0:00:00]} Ra4 {[%emt 0:00:00]} 52. Nc2 {[%emt 0:00:00]} Kc5 {[%emt 0:00:00]} 53. f4 {[%emt 0:00:00]} Rxa6 {[%emt 0:00:00]} 54. f5 {[%emt 0:00:00]} Rf6 {[%emt 0:00:00]} 55. g4 {[%emt 0:00:00]} h6 {[%emt 0:00:00]} 1/2-1/2

[Event "CZE-ch Youth G10-G12-G14 2022"]
[Site "Luhacovice"]
[Date "2022.03.18"]
[Round "8.38"]
[White "Reznickova, Sibyla"]
[Black "Myskova, Veronika"]
[Result "1/2-1/2"]
[ECO "D15"]
[WhiteElo "1304"]
[BlackElo "1117"]
[Annotator "NA"]
[PlyCount "69"]
[EventDate "2022.03.12"]
[EventType "swiss"]
[EventCountry "CZE"]
[SourceTitle "playchess.com"]
[Source "ChessBase"]
[SourceQuality "1"]
[TimeControl "40/5400+30:1800+30"]

1. d4 {[%emt 0:00:06]} d5 {[%emt 0:00:09]} 2. c4 {[%emt 0:00:41]} c6 {[%emt 0:00:52]} 3. Nc3 {[%emt 0:01:17]} Nf6 {[%emt 0:02:07]} 4. Bf4 {[%emt 0:01:55]} Bf5 {[%emt 0:01:10]} 5. Nf3 {[%emt 0:02:21]} e6 {[%emt 0:03:00]} 6. a3 {[%emt 0:01:49]} Be7 {[%emt 0:08:38]} 7. e3 {[%emt 0:01:20]} O-O {[%emt 0:02:07]} 8. Bd3 {[%emt 0:04:00]} Ne4 {[%emt 0:03:30]} 9. Qc2 {[%emt 0:09:17]} Nxc3 {[%emt 0:11:51]} 10. Bxf5 {[%emt 0:06:20]} exf5 {[%emt 0:00:50]} 11. Qxc3 {[%emt 0:11:59]} Bd6 {[%emt 0:03:00]} 12. O-O-O {[%emt 0:13:00]} Bxf4 {[%emt 0:01:46]} 13. exf4 {[%emt 0:00:17]} Nd7 {[%emt 0:01:14]} 14. Rhg1 {[%emt 0:07:33]} Nf6 {[%emt 0:03:06]} 15. h3 {[%emt 0:08:00]} a5 {[%emt 0:04:12]} 16. Qc2 {[%emt 0:04:09]} Qd7 {[%emt 0:05:37]} 17. Ne5 {[%emt 0:01:23]} Qc8 {[%emt 0:00:51]} 18. g4 {[%emt 0:03:45]} fxg4 {[%emt 0:03:21]} 19. Nxg4 {[%emt 0:02:17]} Nxg4 {[%emt 0:04:57]} 20. Rxg4 {[%emt 0:00:49]} f5 {[%emt 0:00:12]} 21. Rg5 {[%emt 0:01:59]} Qe6 {[%emt 0:04:06]} 22. Rdg1 {[%emt 0:02:09]} Rf7 {[%emt 0:02:28]} 23. c5 {[%emt 0:02:52]} Qe4 {[%emt 0:04:16]} 24. Qd2 {[%emt 0:05:00]} Re8 {[%emt 0:07:15]} 25. h4 {[%emt 0:02:56]} Qe2 {[%emt 0:00:37]} 26. h5 {[%emt 0:00:58]} Qxd2+ {[%emt 0:00:49]} 27. Kxd2 {[%emt 0:00:05]} Re6 {[%emt 0:00:29]} 28. Re1 {[%emt 0:01:15]} Rxe1 {[%emt 0:00:54]} 29. Kxe1 {[%emt 0:00:05]} h6 {[%emt 0:00:53]} 30. Rg3 {[%emt 0:00:31]} Re7+ {[%emt 0:02:02]} 31. Re3 {[%emt 0:00:19]} Rxe3+ {[%emt 0:00:15]} 32. fxe3 {[%emt 0:00:07]} Kf7 {[%emt 0:00:04]} 33. Kf2 {[%emt 0:00:28]} Kf6 {[%emt 0:00:05]} 34. Kf3 {[%emt 0:01:15]} g5 {[%emt 0:04:44]} 35. Kg3 {[%emt 0:01:36]} 1/2-1/2